[Event "*** SCC Grand Prix: Titled Tuesday Blitz"]
[Site "Chess.com"]
[Date "2020.06.02"]
[Round "10"]
[White "CrushingKings"]
[Black "Susal_De_Silva"]
[Result "0-1"]
[WhiteElo "2474"]
[BlackElo "2357"]
[TimeControl "180+1"]
[EndTime "11:59:09 PDT"]
[Termination "Susal_De_Silva won on time"]

1. e4 {[%clk 0:03:00.9]} 1... e5 {[%clk 0:02:59.9]} 2. Nf3 {[%clk 0:03:01.5]}
2... Nc6 {[%clk 0:02:58.7]} 3. Bc4 {[%clk 0:03:01.8]} 3... Nf6 {[%clk
0:02:58.3]} 4. d3 {[%clk 0:03:01.8]} 4... Bc5 {[%clk 0:02:58]} 5. O-O {[%clk
0:03:02.3]} 5... O-O {[%clk 0:02:57.6]} 6. c3 {[%clk 0:03:02.9]} 6... d5 {[%clk
0:02:57.5]} 7. exd5 {[%clk 0:03:03.8]} 7... Nxd5 {[%clk 0:02:57.8]} 8. a4 {[%clk
0:03:04.7]} 8... a6 {[%clk 0:02:57.7]} 9. Nbd2 {[%clk 0:03:04.6]} 9... Nf4
{[%clk 0:02:55]} 10. Ne4 {[%clk 0:03:04.1]} 10... Ba7 {[%clk 0:02:53.8]} 11.
Bxf4 {[%clk 0:02:46.6]} 11... exf4 {[%clk 0:02:53.1]} 12. h3 {[%clk 0:02:46]}
12... h6 {[%clk 0:02:44.2]} 13. d4 {[%clk 0:02:46.2]} 13... Kh8 {[%clk
0:02:39.8]} 14. Re1 {[%clk 0:02:45.4]} 14... f5 {[%clk 0:02:38.6]} 15. Ned2
{[%clk 0:01:41.6]} 15... g5 {[%clk 0:02:15.1]} 16. d5 {[%clk 0:01:33.4]} 16...
Ne7 {[%clk 0:02:12.6]} 17. Ne5 {[%clk 0:01:31]} 17... Kg7 {[%clk 0:02:10.7]} 18.
Ndf3 {[%clk 0:01:29.5]} 18... Bc5 {[%clk 0:02:04.2]} 19. h4 {[%clk 0:01:19.6]}
19... g4 {[%clk 0:02:01.5]} 20. Nd4 {[%clk 0:01:19.4]} 20... Ng6 {[%clk
0:01:52.8]} 21. Nxg6 {[%clk 0:00:28.7]} 21... Kxg6 {[%clk 0:01:51.5]} 22. Qd2
{[%clk 0:00:25.6]} 22... Bd6 {[%clk 0:01:45.2]} 23. Ne6 {[%clk 0:00:19.3]} 23...
Bxe6 {[%clk 0:01:35.3]} 24. Rxe6+ {[%clk 0:00:20.2]} 24... Kh5 {[%clk
0:01:34.4]} 25. g3 {[%clk 0:00:20.3]} 25... Rf6 {[%clk 0:01:31.7]} 26. Rae1
{[%clk 0:00:20.8]} 26... fxg3 {[%clk 0:01:26.2]} 27. fxg3 {[%clk 0:00:20.7]}
27... Bxg3 {[%clk 0:01:25.9]} 28. Rf1 {[%clk 0:00:21.2]} 28... Qf8 {[%clk
0:01:11.2]} 29. Bd3 {[%clk 0:00:17.2]} 29... Rxe6 {[%clk 0:00:57.9]} 30. dxe6
{[%clk 0:00:14.2]} 30... f4 {[%clk 0:00:54.1]} 31. Qe2 {[%clk 0:00:14.4]} 31...
Qf6 {[%clk 0:00:45.7]} 32. Qe4 {[%clk 0:00:13.9]} 32... Rg8 {[%clk 0:00:41.9]}
33. Qd5+ {[%clk 0:00:13.5]} 33... Kxh4 {[%clk 0:00:41]} 34. e7 {[%clk 0:00:13]}
34... Qxe7 {[%clk 0:00:24.1]} 35. Qh1+ {[%clk 0:00:13]} 35... Kg5 {[%clk
0:00:23]} 36. Qd5+ {[%clk 0:00:13.7]} 36... Kh4 {[%clk 0:00:20]} 37. Qh1+ {[%clk
0:00:12.9]} 37... Kg5 {[%clk 0:00:19.9]} 38. Qd5+ {[%clk 0:00:12.7]} 38... Kf6
{[%clk 0:00:19.2]} 39. Qf5+ {[%clk 0:00:12.8]} 39... Kg7 {[%clk 0:00:19]} 40.
Bc4 {[%clk 0:00:08.7]} 40... Rf8 {[%clk 0:00:18.4]} 41. Qxg4+ {[%clk 0:00:08.9]}
41... Qg5 {[%clk 0:00:18.1]} 42. Qd7+ {[%clk 0:00:08.7]} 42... Kg6 {[%clk
0:00:18.6]} 43. Bd3+ {[%clk 0:00:08.4]} 43... Kh5 {[%clk 0:00:18.4]} 44. Qh3+
{[%clk 0:00:08.6]} 44... Bh4+ {[%clk 0:00:18.4]} 45. Kh1 {[%clk 0:00:08.5]}
45... Rg8 {[%clk 0:00:18]} 46. Be2+ {[%clk 0:00:07.9]} 46... Kg6 {[%clk
0:00:17.1]} 47. Rg1 {[%clk 0:00:08.3]} 47... Bg3 {[%clk 0:00:16.3]} 48. Bd3+
{[%clk 0:00:08.9]} 48... Kg7 {[%clk 0:00:15.8]} 49. Qd7+ {[%clk 0:00:08.6]}
49... Kf6 {[%clk 0:00:15]} 50. Kg2 {[%clk 0:00:01.9]} 50... Qe5 {[%clk
0:00:14.1]} 51. Rf1 {[%clk 0:00:01.6]} 51... Be1+ {[%clk 0:00:14]} 0-1

[Event "*** SCC Grand Prix: Titled Tuesday Blitz"]
[Site "Chess.com"]
[Date "2020.06.02"]
[Round "10"]
[White "Maksimus1998"]
[Black "hectorfiori"]
[Result "1-0"]
[WhiteElo "2513"]
[BlackElo "2374"]
[TimeControl "180+1"]
[EndTime "11:59:11 PDT"]
[Termination "Maksimus1998 won by resignation"]

1. e4 {[%clk 0:03:00.7]} 1... c5 {[%clk 0:02:58.2]} 2. Nf3 {[%clk 0:03:00]} 2...
e6 {[%clk 0:02:57.5]} 3. b3 {[%clk 0:02:59.1]} 3... d5 {[%clk 0:02:56.3]} 4.
exd5 {[%clk 0:02:56.3]} 4... exd5 {[%clk 0:02:57.2]} 5. Bb5+ {[%clk 0:02:53.8]}
5... Nc6 {[%clk 0:02:57]} 6. O-O {[%clk 0:02:53.4]} 6... Nf6 {[%clk 0:02:52.8]}
7. Re1+ {[%clk 0:02:53.4]} 7... Be7 {[%clk 0:02:52.2]} 8. Ne5 {[%clk 0:02:50]}
8... Qb6 {[%clk 0:02:41.6]} 9. Bxc6+ {[%clk 0:02:46.1]} 9... bxc6 {[%clk
0:02:42.5]} 10. Bb2 {[%clk 0:02:45.4]} 10... Be6 {[%clk 0:02:41.3]} 11. Nf3
{[%clk 0:02:34.3]} 11... O-O {[%clk 0:02:38.6]} 12. Ng5 {[%clk 0:02:32.9]} 12...
c4 {[%clk 0:02:29.1]} 13. Nxe6 {[%clk 0:02:29.7]} 13... fxe6 {[%clk 0:02:30]}
14. Nc3 {[%clk 0:02:26.4]} 14... cxb3 {[%clk 0:02:11.1]} 15. axb3 {[%clk
0:02:24.1]} 15... Bc5 {[%clk 0:01:56.9]} 16. Qe2 {[%clk 0:02:22.9]} 16... Ne4
{[%clk 0:01:07.4]} 17. Nxe4 {[%clk 0:02:22.5]} 17... dxe4 {[%clk 0:01:08.3]} 18.
Rf1 {[%clk 0:02:22.9]} 18... Rad8 {[%clk 0:01:00.7]} 19. Rad1 {[%clk 0:02:22.1]}
19... Qb4 {[%clk 0:00:46.1]} 20. Qg4 {[%clk 0:02:16.9]} 20... g6 {[%clk
0:00:41.2]} 21. Qxe6+ {[%clk 0:02:12.9]} 21... Rf7 {[%clk 0:00:38.3]} 22. Qe5
{[%clk 0:02:11.1]} 22... Bd4 {[%clk 0:00:35.5]} 23. Bxd4 {[%clk 0:02:10]} 23...
Qxd4 {[%clk 0:00:36.4]} 24. Qxd4 {[%clk 0:02:10]} 24... Rxd4 {[%clk 0:00:37.3]}
25. Rfe1 {[%clk 0:02:07.7]} 25... Rfd7 {[%clk 0:00:37.5]} 26. Re2 {[%clk
0:02:06.9]} 26... Kf7 {[%clk 0:00:38]} 27. Kf1 {[%clk 0:02:06.9]} 27... Kf6
{[%clk 0:00:37.8]} 28. Ke1 {[%clk 0:02:05.3]} 28... Kf5 {[%clk 0:00:37.8]} 29.
Ra1 {[%clk 0:02:02.4]} 29... a5 {[%clk 0:00:36.7]} 30. Rxa5+ {[%clk 0:01:54.9]}
30... Kf4 {[%clk 0:00:36.4]} 31. Ra4 {[%clk 0:01:49.2]} 31... Rxa4 {[%clk
0:00:33.9]} 32. bxa4 {[%clk 0:01:50]} 32... Ra7 {[%clk 0:00:34.5]} 33. g3+
{[%clk 0:01:49]} 33... Kf5 {[%clk 0:00:32.9]} 34. Re3 {[%clk 0:01:48.4]} 34...
Rxa4 {[%clk 0:00:32.2]} 35. Ke2 {[%clk 0:01:48.6]} 35... c5 {[%clk 0:00:28]} 36.
Rc3 {[%clk 0:01:47.4]} 36... c4 {[%clk 0:00:27.8]} 37. f3 {[%clk 0:01:47]} 37...
g5 {[%clk 0:00:23]} 38. fxe4+ {[%clk 0:01:47.4]} 38... Kxe4 {[%clk 0:00:23.9]}
39. g4 {[%clk 0:01:44]} 39... h6 {[%clk 0:00:20.6]} 40. h3 {[%clk 0:01:37.6]}
40... Kf4 {[%clk 0:00:20.7]} 41. Rf3+ {[%clk 0:01:36.2]} 41... Ke5 {[%clk
0:00:18.5]} 42. Rf5+ {[%clk 0:01:35.8]} 42... Ke6 {[%clk 0:00:18.7]} 43. Rc5
{[%clk 0:01:34.8]} 43... Kd6 {[%clk 0:00:18.2]} 44. Rf5 {[%clk 0:01:32]} 44...
Ke6 {[%clk 0:00:18.1]} 45. Rb5 {[%clk 0:01:28.5]} 45... Ra3 {[%clk 0:00:16.9]}
46. c3 {[%clk 0:01:25.8]} 46... Kf6 {[%clk 0:00:09.5]} 47. Rb6+ {[%clk
0:01:21.6]} 47... Ke5 {[%clk 0:00:08.8]} 48. Rxh6 {[%clk 0:01:19.5]} 48... Kf4
{[%clk 0:00:09.2]} 49. Rc6 {[%clk 0:01:15.3]} 49... Kg3 {[%clk 0:00:09.2]} 50.
Rxc4 {[%clk 0:01:14.8]} 50... Kxh3 {[%clk 0:00:09.7]} 51. Re4 {[%clk 0:01:13.9]}
51... Ra2 {[%clk 0:00:09.3]} 52. Kd3 {[%clk 0:01:09.7]} 52... Ra1 {[%clk
0:00:08.9]} 53. c4 {[%clk 0:01:09.3]} 53... Rg1 {[%clk 0:00:09.2]} 54. c5 {[%clk
0:01:08.9]} 54... Rxg4 {[%clk 0:00:08.3]} 55. Rxg4 {[%clk 0:01:08.5]} 55... Kxg4
{[%clk 0:00:09.2]} 56. c6 {[%clk 0:01:09.4]} 56... Kf3 {[%clk 0:00:09.8]} 57. c7
{[%clk 0:01:09.7]} 57... g4 {[%clk 0:00:10.7]} 58. c8=Q {[%clk 0:01:10]} 58...
g3 {[%clk 0:00:11.6]} 59. Qf5+ {[%clk 0:01:10.3]} 59... Kg2 {[%clk 0:00:11.6]}
60. Ke2 {[%clk 0:01:10]} 60... Kh2 {[%clk 0:00:09.9]} 61. Kf3 {[%clk 0:01:05.4]}
61... g2 {[%clk 0:00:08.2]} 62. Qh5+ {[%clk 0:01:05.2]} 62... Kg1 {[%clk
0:00:08.4]} 63. Qh3 {[%clk 0:01:04]} 1-0

[Event "*** SCC Grand Prix: Titled Tuesday Blitz"]
[Site "Chess.com"]
[Date "2020.06.02"]
[Round "10"]
[White "vlad_Sid"]
[Black "BogdanDeac"]
[Result "1/2-1/2"]
[WhiteElo "2657"]
[BlackElo "2908"]
[TimeControl "180+1"]
[EndTime "11:59:12 PDT"]
[Termination "Game drawn by repetition"]

1. c4 {[%clk 0:03:00.9]} 1... e6 {[%clk 0:02:59.6]} 2. g3 {[%clk 0:03:00.6]}
2... d5 {[%clk 0:02:59.5]} 3. Bg2 {[%clk 0:02:54.9]} 3... Nf6 {[%clk 0:02:59.9]}
4. Nf3 {[%clk 0:02:55.2]} 4... Be7 {[%clk 0:03:00.1]} 5. O-O {[%clk 0:02:56.1]}
5... O-O {[%clk 0:02:59.9]} 6. b3 {[%clk 0:02:55.9]} 6... d4 {[%clk 0:02:59.4]}
7. e3 {[%clk 0:02:49.6]} 7... c5 {[%clk 0:02:56.8]} 8. b4 {[%clk 0:02:48.2]}
8... dxe3 {[%clk 0:02:54.3]} 9. fxe3 {[%clk 0:02:49.1]} 9... cxb4 {[%clk
0:02:54.2]} 10. a3 {[%clk 0:02:46.9]} 10... Qc7 {[%clk 0:02:43.5]} 11. Qe2
{[%clk 0:02:36.1]} 11... b6 {[%clk 0:02:38.4]} 12. axb4 {[%clk 0:02:32.9]} 12...
Bxb4 {[%clk 0:02:37]} 13. Ba3 {[%clk 0:02:31.6]} 13... Bxa3 {[%clk 0:02:31.9]}
14. Nxa3 {[%clk 0:02:32.5]} 14... Bb7 {[%clk 0:02:32.1]} 15. Nb5 {[%clk
0:02:27.8]} 15... Qe7 {[%clk 0:02:32]} 16. d4 {[%clk 0:02:16.2]} 16... a6 {[%clk
0:02:23.2]} 17. Nc3 {[%clk 0:02:16]} 17... Rc8 {[%clk 0:02:23]} 18. e4 {[%clk
0:02:11.3]} 18... Qb4 {[%clk 0:02:19.6]} 19. Rfc1 {[%clk 0:02:06]} 19... Rxc4
{[%clk 0:02:17.6]} 20. Rab1 {[%clk 0:01:58.3]} 20... Rxc3 {[%clk 0:02:13.2]} 21.
Rxb4 {[%clk 0:01:54.7]} 21... Rxc1+ {[%clk 0:02:13.8]} 22. Ne1 {[%clk
0:01:54.2]} 22... Nbd7 {[%clk 0:02:10.6]} 23. Rc4 {[%clk 0:01:52.4]} 23... Rc8
{[%clk 0:01:53.4]} 24. Rxc8+ {[%clk 0:01:43.2]} 24... Rxc8 {[%clk 0:01:46.6]}
25. e5 {[%clk 0:01:39.1]} 25... Nd5 {[%clk 0:01:45.1]} 26. Bxd5 {[%clk
0:01:20.7]} 26... Bxd5 {[%clk 0:01:08.5]} 27. Qxa6 {[%clk 0:01:16.9]} 27... Rc1
{[%clk 0:00:35.8]} 28. Kf2 {[%clk 0:01:13.6]} 28... h6 {[%clk 0:00:35.7]} 29.
Nd3 {[%clk 0:01:09.9]} 29... Rc2+ {[%clk 0:00:33.4]} 30. Ke3 {[%clk 0:01:08.4]}
30... Rxh2 {[%clk 0:00:33]} 31. Qc8+ {[%clk 0:00:56.8]} 31... Nf8 {[%clk
0:00:32]} 32. Nf4 {[%clk 0:00:52.2]} 32... Bh1 {[%clk 0:00:23.9]} 33. Qa6 {[%clk
0:00:48.2]} 33... g5 {[%clk 0:00:20.6]} 34. Ne2 {[%clk 0:00:45.8]} 34... Ng6
{[%clk 0:00:14.8]} 35. Qxb6 {[%clk 0:00:44.8]} 35... Bd5 {[%clk 0:00:12.9]} 36.
Qb8+ {[%clk 0:00:30.5]} 36... Kg7 {[%clk 0:00:12.8]} 37. Qb6 {[%clk 0:00:22.6]}
37... Ne7 {[%clk 0:00:12.3]} 38. Qd8 {[%clk 0:00:20.5]} 38... Nf5+ {[%clk
0:00:11.6]} 39. Kd3 {[%clk 0:00:20.9]} 39... Bf3 {[%clk 0:00:10.7]} 40. Qf6+
{[%clk 0:00:20.6]} 40... Kg8 {[%clk 0:00:10.4]} 41. Nc3 {[%clk 0:00:18.7]} 41...
Rh1 {[%clk 0:00:10.5]} 42. Nb5 {[%clk 0:00:13.7]} 42... Rd1+ {[%clk 0:00:10.2]}
43. Kc3 {[%clk 0:00:12.6]} 43... Rc1+ {[%clk 0:00:10.3]} 44. Kb2 {[%clk
0:00:11.6]} 44... Rc6 {[%clk 0:00:08.8]} 45. Nd6 {[%clk 0:00:11.7]} 45... Nxd6
{[%clk 0:00:07.8]} 46. Qd8+ {[%clk 0:00:12.1]} 46... Ne8 {[%clk 0:00:08]} 47.
Qxe8+ {[%clk 0:00:12.4]} 47... Kg7 {[%clk 0:00:08.6]} 48. Qd8 {[%clk 0:00:11.8]}
48... Bd5 {[%clk 0:00:07.2]} 49. Qf6+ {[%clk 0:00:11.7]} 49... Kg8 {[%clk
0:00:07.3]} 50. Qxh6 {[%clk 0:00:11.3]} 50... Rb6+ {[%clk 0:00:07.4]} 51. Kc2
{[%clk 0:00:10.2]} 51... Rb3 {[%clk 0:00:07.4]} 52. Qxg5+ {[%clk 0:00:09.7]}
52... Kh7 {[%clk 0:00:08]} 53. Qh5+ {[%clk 0:00:09.1]} 53... Kg7 {[%clk
0:00:08.2]} 54. Qg5+ {[%clk 0:00:10]} 54... Kh7 {[%clk 0:00:08.4]} 55. Qf4
{[%clk 0:00:10.9]} 55... Kg7 {[%clk 0:00:08.4]} 56. Qg5+ {[%clk 0:00:10.7]}
56... Kh7 {[%clk 0:00:08.4]} 1/2-1/2

[Event "*** SCC Grand Prix: Titled Tuesday Blitz"]
[Site "Chess.com"]
[Date "2020.06.02"]
[Round "10"]
[White "c63_amg"]
[Black "Marty435"]
[Result "1-0"]
[WhiteElo "2675"]
[BlackElo "2439"]
[TimeControl "180+1"]
[EndTime "11:59:13 PDT"]
[Termination "c63_amg won by checkmate"]

1. e4 {[%clk 0:03:00.9]} 1... c6 {[%clk 0:02:58.6]} 2. d4 {[%clk 0:02:53.3]}
2... d5 {[%clk 0:02:56.4]} 3. e5 {[%clk 0:02:49.8]} 3... Bf5 {[%clk 0:02:56.3]}
4. h4 {[%clk 0:02:47.5]} 4... h6 {[%clk 0:02:55.7]} 5. g4 {[%clk 0:02:46]} 5...
Be4 {[%clk 0:02:55.3]} 6. f3 {[%clk 0:02:45.7]} 6... Bh7 {[%clk 0:02:55.9]} 7.
Bd3 {[%clk 0:02:42.1]} 7... Bxd3 {[%clk 0:02:54.7]} 8. Qxd3 {[%clk 0:02:43]}
8... e6 {[%clk 0:02:55.3]} 9. h5 {[%clk 0:02:40.9]} 9... c5 {[%clk 0:02:53.9]}
10. c3 {[%clk 0:02:05.6]} 10... Nd7 {[%clk 0:02:48.9]} 11. f4 {[%clk 0:02:00.8]}
11... Ne7 {[%clk 0:02:47.6]} 12. Nf3 {[%clk 0:02:00.3]} 12... Nc6 {[%clk
0:02:39.9]} 13. a3 {[%clk 0:01:54.3]} 13... Qb6 {[%clk 0:02:35.9]} 14. b4 {[%clk
0:01:50.5]} 14... cxd4 {[%clk 0:02:32.8]} 15. cxd4 {[%clk 0:01:51.4]} 15... Rc8
{[%clk 0:02:12.5]} 16. Bd2 {[%clk 0:01:46.7]} 16... a5 {[%clk 0:02:10.2]} 17. b5
{[%clk 0:01:46.6]} 17... Na7 {[%clk 0:02:10.5]} 18. a4 {[%clk 0:01:46.8]} 18...
Bb4 {[%clk 0:02:06]} 19. Nc3 {[%clk 0:01:31.3]} 19... Qc7 {[%clk 0:01:54.5]} 20.
Rc1 {[%clk 0:01:08.8]} 20... Nb6 {[%clk 0:01:36.6]} 21. Ke2 {[%clk 0:01:03.6]}
21... Qc4 {[%clk 0:01:29.3]} 22. Qxc4 {[%clk 0:00:31]} 22... Rxc4 {[%clk
0:01:27.3]} 23. Na2 {[%clk 0:00:20.3]} 23... Bxd2 {[%clk 0:01:25.6]} 24. Rxc4
{[%clk 0:00:11.5]} 24... Nxc4 {[%clk 0:01:00.4]} 25. Nxd2 {[%clk 0:00:11.9]}
25... Nb6 {[%clk 0:00:42.4]} 26. Rc1 {[%clk 0:00:10.2]} 26... Kd7 {[%clk
0:00:35.2]} 27. Nc3 {[%clk 0:00:10.1]} 27... Rc8 {[%clk 0:00:34.5]} 28. Nb3
{[%clk 0:00:10.4]} 28... Ke7 {[%clk 0:00:25.8]} 29. Kd3 {[%clk 0:00:09.8]} 29...
Rc7 {[%clk 0:00:17]} 30. f5 {[%clk 0:00:08.8]} 30... Nac8 {[%clk 0:00:13.4]} 31.
Nxa5 {[%clk 0:00:06.5]} 31... Kd7 {[%clk 0:00:06.7]} 32. Nb3 {[%clk 0:00:06.1]}
32... Nc4 {[%clk 0:00:05]} 33. Nc5+ {[%clk 0:00:06.1]} 33... Ke7 {[%clk
0:00:04.1]} 34. fxe6 {[%clk 0:00:07]} 34... fxe6 {[%clk 0:00:04.8]} 35. a5
{[%clk 0:00:05.3]} 35... Nxa5 {[%clk 0:00:04.3]} 36. Rf1 {[%clk 0:00:04.3]}
36... b6 {[%clk 0:00:03.5]} 37. g5 {[%clk 0:00:05.2]} 37... bxc5 {[%clk
0:00:03.3]} 38. gxh6 {[%clk 0:00:04.4]} 38... gxh6 {[%clk 0:00:04.2]} 39. Rf6
{[%clk 0:00:04.4]} 39... cxd4 {[%clk 0:00:04.3]} 40. Kxd4 {[%clk 0:00:04.4]}
40... Nb3+ {[%clk 0:00:02.8]} 41. Kd3 {[%clk 0:00:04.2]} 41... Nc5+ {[%clk
0:00:03.1]} 42. Ke3 {[%clk 0:00:04.7]} 42... Nb6 {[%clk 0:00:02.3]} 43. Rxh6
{[%clk 0:00:04.8]} 43... Nc4+ {[%clk 0:00:02.6]} 44. Kd4 {[%clk 0:00:04.8]}
44... Nb3+ {[%clk 0:00:03]} 45. Kd3 {[%clk 0:00:05.4]} 45... Nb2+ {[%clk
0:00:03.3]} 46. Kc2 {[%clk 0:00:05.6]} 46... Na4 {[%clk 0:00:02.9]} 47. Rh7+
{[%clk 0:00:06.2]} 47... Kd8 {[%clk 0:00:02.8]} 48. Rxc7 {[%clk 0:00:07.1]}
48... Kxc7 {[%clk 0:00:03.3]} 49. Nxa4 {[%clk 0:00:07.6]} 49... Nd4+ {[%clk
0:00:02.7]} 50. Kd3 {[%clk 0:00:07.4]} 50... Nf5 {[%clk 0:00:02.6]} 51. Nc5
{[%clk 0:00:08.3]} 51... Kb6 {[%clk 0:00:02.5]} 52. Nxe6 {[%clk 0:00:08.5]}
52... Kxb5 {[%clk 0:00:03.2]} 53. Nd4+ {[%clk 0:00:09]} 53... Nxd4 {[%clk
0:00:01.7]} 54. Kxd4 {[%clk 0:00:09.9]} 54... Kc6 {[%clk 0:00:02.3]} 55. h6
{[%clk 0:00:10.6]} 55... Kd7 {[%clk 0:00:02.5]} 56. h7 {[%clk 0:00:11.5]} 56...
Ke6 {[%clk 0:00:02.6]} 57. h8=Q {[%clk 0:00:12.4]} 57... Kd7 {[%clk 0:00:02.9]}
58. Qf6 {[%clk 0:00:13]} 58... Kc7 {[%clk 0:00:03.1]} 59. e6 {[%clk 0:00:12.7]}
59... Kd6 {[%clk 0:00:03.3]} 60. e7+ {[%clk 0:00:13.6]} 60... Kd7 {[%clk
0:00:03.8]} 61. e8=Q+ {[%clk 0:00:14.5]} 61... Kxe8 {[%clk 0:00:04.1]} 62. Kxd5
{[%clk 0:00:14.2]} 62... Kd7 {[%clk 0:00:04.4]} 63. Qg7+ {[%clk 0:00:14.7]}
63... Kc8 {[%clk 0:00:04.5]} 64. Kd6 {[%clk 0:00:15.6]} 64... Kb8 {[%clk
0:00:04.6]} 65. Kc6 {[%clk 0:00:13.9]} 65... Ka8 {[%clk 0:00:05]} 66. Qb7#
{[%clk 0:00:14.3]} 1-0

[Event "*** SCC Grand Prix: Titled Tuesday Blitz"]
[Site "Chess.com"]
[Date "2020.06.02"]
[Round "10"]
[White "LittlePeasant"]
[Black "LizaSolovyova"]
[Result "1-0"]
[WhiteElo "2804"]
[BlackElo "2539"]
[TimeControl "180+1"]
[EndTime "11:59:14 PDT"]
[Termination "LittlePeasant won on time"]

1. Nf3 {[%clk 0:03:00.9]} 1... f5 {[%clk 0:02:58.8]} 2. d4 {[%clk 0:03:00.5]}
2... Nf6 {[%clk 0:02:57.7]} 3. Bf4 {[%clk 0:03:00.9]} 3... e6 {[%clk 0:02:57.7]}
4. h3 {[%clk 0:03:01]} 4... Be7 {[%clk 0:02:56.7]} 5. e3 {[%clk 0:03:01.1]} 5...
O-O {[%clk 0:02:55.3]} 6. Nbd2 {[%clk 0:03:01.6]} 6... d5 {[%clk 0:02:51]} 7.
Bd3 {[%clk 0:03:01.4]} 7... c6 {[%clk 0:02:50.2]} 8. Qe2 {[%clk 0:03:00.9]} 8...
Nbd7 {[%clk 0:02:49.6]} 9. g4 {[%clk 0:03:00.8]} 9... Ne4 {[%clk 0:02:48.9]} 10.
gxf5 {[%clk 0:02:55.9]} 10... exf5 {[%clk 0:02:48.6]} 11. O-O-O {[%clk
0:02:54.4]} 11... Bf6 {[%clk 0:02:47.4]} 12. Rdg1 {[%clk 0:02:51.6]} 12... Qa5
{[%clk 0:02:46]} 13. Kb1 {[%clk 0:02:49.1]} 13... b5 {[%clk 0:02:44.3]} 14. Nb3
{[%clk 0:02:46]} 14... Qb6 {[%clk 0:02:42.4]} 15. Ne5 {[%clk 0:02:33.4]} 15...
a5 {[%clk 0:02:26.7]} 16. Nxd7 {[%clk 0:02:01.7]} 16... Bxd7 {[%clk 0:02:27.6]}
17. Bxe4 {[%clk 0:02:02.4]} 17... dxe4 {[%clk 0:02:16.6]} 18. Nc5 {[%clk
0:02:00.2]} 18... Ra7 {[%clk 0:02:11.3]} 19. Bg5 {[%clk 0:01:56.1]} 19... Qd8
{[%clk 0:02:05.8]} 20. Qh5 {[%clk 0:01:54.4]} 20... Be8 {[%clk 0:01:58.8]} 21.
Qh4 {[%clk 0:01:54.5]} 21... Qd6 {[%clk 0:01:45.9]} 22. Rg2 {[%clk 0:01:44.5]}
22... a4 {[%clk 0:01:42.6]} 23. a3 {[%clk 0:01:40.7]} 23... Bg6 {[%clk
0:01:36.4]} 24. Rhg1 {[%clk 0:01:37.5]} 24... Qd5 {[%clk 0:01:32.8]} 25. Bxf6
{[%clk 0:01:32.8]} 25... Rxf6 {[%clk 0:01:32.5]} 26. Qf4 {[%clk 0:01:33.7]}
26... Qd6 {[%clk 0:01:20.4]} 27. Qxd6 {[%clk 0:01:21.1]} 27... Rxd6 {[%clk
0:01:21.3]} 28. Kc1 {[%clk 0:01:21.7]} 28... Kf7 {[%clk 0:01:07.7]} 29. h4
{[%clk 0:01:17.2]} 29... Kf6 {[%clk 0:01:07.7]} 30. Kd2 {[%clk 0:01:11.1]} 30...
Bh5 {[%clk 0:01:06.2]} 31. Kc3 {[%clk 0:01:03.2]} 31... Bf3 {[%clk 0:01:00.8]}
32. Rg5 {[%clk 0:01:00.5]} 32... g6 {[%clk 0:00:58.5]} 33. R5g3 {[%clk
0:00:54.2]} 33... Rd5 {[%clk 0:00:49.8]} 34. Kb4 {[%clk 0:00:52.8]} 34... Rd8
{[%clk 0:00:46.9]} 35. Ra1 {[%clk 0:00:52.5]} 35... Rb8 {[%clk 0:00:44.5]} 36.
Rgg1 {[%clk 0:00:52]} 36... Rd8 {[%clk 0:00:40.2]} 37. b3 {[%clk 0:00:50.6]}
37... Rb8 {[%clk 0:00:35.4]} 38. Rgb1 {[%clk 0:00:46.9]} 38... axb3 {[%clk
0:00:31.3]} 39. cxb3 {[%clk 0:00:46.5]} 39... Rba8 {[%clk 0:00:29.4]} 40. a4
{[%clk 0:00:45.6]} 40... Ke7 {[%clk 0:00:28.1]} 41. a5 {[%clk 0:00:28.4]} 41...
Kd6 {[%clk 0:00:27.6]} 42. Rc1 {[%clk 0:00:27.5]} 42... Be2 {[%clk 0:00:25.8]}
43. a6 {[%clk 0:00:21.3]} 43... Bf3 {[%clk 0:00:24]} 44. Ka5 {[%clk 0:00:20.6]}
44... Rb8 {[%clk 0:00:22]} 45. Kb4 {[%clk 0:00:16]} 45... Rba8 {[%clk
0:00:19.9]} 46. Ra2 {[%clk 0:00:16.6]} 46... h6 {[%clk 0:00:18.1]} 47. Rg1
{[%clk 0:00:15.3]} 47... Bg4 {[%clk 0:00:18]} 48. Ka5 {[%clk 0:00:13.7]} 48...
Bh5 {[%clk 0:00:15.8]} 49. Rc2 {[%clk 0:00:13.6]} 49... Rb8 {[%clk 0:00:15.1]}
50. Kb4 {[%clk 0:00:13.7]} 50... Rba8 {[%clk 0:00:13.8]} 51. Ka5 {[%clk
0:00:14.2]} 51... Rb8 {[%clk 0:00:13.9]} 52. Rgc1 {[%clk 0:00:14.8]} 52... g5
{[%clk 0:00:12.2]} 53. hxg5 {[%clk 0:00:14.3]} 53... hxg5 {[%clk 0:00:13.1]} 54.
Rh1 {[%clk 0:00:14.9]} 54... Bf3 {[%clk 0:00:12]} 55. Rh6+ {[%clk 0:00:14.2]}
55... Kd5 {[%clk 0:00:11.9]} 56. Nb7 {[%clk 0:00:10.6]} 1-0